[Event "*** Qualifier 3: Titled Tuesday 3|2 Blitz"]
[Site "Chess.com"]
[Date "2017.04.18"]
[Round "7"]
[White "prochn"]
[Black "Alex_Molchanov"]
[Result "0-1"]
[WhiteElo "2175"]
[BlackElo "2434"]
[TimeControl "180+2"]
[EndTime "14:35:24 PDT"]
[Termination "Alex_Molchanov won by resignation"]

1. d4 {[%clk 0:03:02]} 1... Nf6 {[%clk 0:03:00.6]} 2. c4 {[%clk 0:03:02.5]} 2...
e6 {[%clk 0:03:02.1]} 3. Nc3 {[%clk 0:03:03.1]} 3... Bb4 {[%clk 0:03:03.6]} 4.
Qc2 {[%clk 0:03:04.3]} 4... O-O {[%clk 0:03:03.8]} 5. a3 {[%clk 0:03:05.5]} 5...
Bxc3+ {[%clk 0:03:01.4]} 6. Qxc3 {[%clk 0:03:06.6]} 6... b6 {[%clk 0:02:42.8]}
7. Nf3 {[%clk 0:03:04.5]} 7... Bb7 {[%clk 0:02:41.7]} 8. Bg5 {[%clk 0:03:01.9]}
8... h6 {[%clk 0:02:39.8]} 9. Bh4 {[%clk 0:02:55.9]} 9... d6 {[%clk 0:02:36.2]}
10. e3 {[%clk 0:02:55.2]} 10... g5 {[%clk 0:02:36.1]} 11. Bg3 {[%clk 0:02:55.3]}
11... Ne4 {[%clk 0:02:36.6]} 12. Qc2 {[%clk 0:02:55.1]} 12... Nd7 {[%clk
0:02:36.9]} 13. Bd3 {[%clk 0:02:54.6]} 13... f5 {[%clk 0:02:36]} 14. O-O-O
{[%clk 0:02:28.9]} 14... Qf6 {[%clk 0:02:27.2]} 15. h4 {[%clk 0:02:16.6]} 15...
g4 {[%clk 0:02:21.9]} 16. Ne1 {[%clk 0:01:55]} 16... Nxg3 {[%clk 0:02:19.6]} 17.
fxg3 {[%clk 0:01:55.9]} 17... Qg6 {[%clk 0:02:20.3]} 18. Rf1 {[%clk 0:01:49.3]}
18... Nf6 {[%clk 0:01:58.6]} 19. d5 {[%clk 0:01:46.3]} 19... Nh5 {[%clk
0:01:57.6]} 20. dxe6 {[%clk 0:01:41.7]} 20... Nxg3 {[%clk 0:01:56.1]} 21. Rf4
{[%clk 0:01:38]} 21... Rae8 {[%clk 0:01:52.3]} 22. Qf2 {[%clk 0:01:28.4]} 22...
Ne4 {[%clk 0:01:46.1]} 23. Bxe4 {[%clk 0:01:23.9]} 23... Bxe4 {[%clk 0:01:46.4]}
24. Nc2 {[%clk 0:01:24.8]} 24... Qxe6 {[%clk 0:01:44.9]} 25. b3 {[%clk
0:01:10.6]} 25... Bxc2 {[%clk 0:01:40.6]} 26. Kxc2 {[%clk 0:01:10.5]} 26... Qxe3
{[%clk 0:01:41.2]} 27. Qf1 {[%clk 0:00:41.2]} 27... Re5 {[%clk 0:01:12.8]} 28.
Rd2 {[%clk 0:00:37.7]} 28... a5 {[%clk 0:01:08.4]} 29. Rdf2 {[%clk 0:00:37.7]}
29... a4 {[%clk 0:01:05.6]} 30. Rxg4+ {[%clk 0:00:34.8]} 30... Kh7 {[%clk
0:00:55.8]} 31. bxa4 {[%clk 0:00:34.2]} 31... Qxa3 {[%clk 0:00:42.7]} 32. Rgf4
{[%clk 0:00:25.7]} 32... Qxa4+ {[%clk 0:00:40.9]} 33. Kb2 {[%clk 0:00:24.2]}
33... Qb4+ {[%clk 0:00:40.4]} 34. Kc2 {[%clk 0:00:24.4]} 34... Ra8 {[%clk
0:00:38.6]} 35. Qb1 {[%clk 0:00:25.3]} 35... Qa4+ {[%clk 0:00:25]} 36. Qb3
{[%clk 0:00:24.5]} 36... Qa2+ {[%clk 0:00:21.2]} 37. Qb2 {[%clk 0:00:24.8]}
37... Qa4+ {[%clk 0:00:12.2]} 38. Qb3 {[%clk 0:00:25.8]} 38... Qa1 {[%clk
0:00:13.2]} 39. Rxf5 {[%clk 0:00:19.4]} 39... Ra2+ {[%clk 0:00:14.4]} 40. Kd3
{[%clk 0:00:21.1]} 40... Ra3 {[%clk 0:00:11.6]} 41. Rf7+ {[%clk 0:00:21.2]}
41... Kg6 {[%clk 0:00:12.4]} 42. h5+ {[%clk 0:00:20.7]} 42... Kxh5 {[%clk
0:00:12.8]} 43. g4+ {[%clk 0:00:22]} 43... Kg5 {[%clk 0:00:13.3]} 44. Rg7+
{[%clk 0:00:21.4]} 44... Kh4 {[%clk 0:00:14.4]} 45. Rh2+ {[%clk 0:00:20.4]}
45... Kg3 {[%clk 0:00:15.4]} 46. Kc2+ {[%clk 0:00:14]} 46... Rxb3 {[%clk
0:00:15.3]} 0-1

[Event "*** Qualifier 3: Titled Tuesday 3|2 Blitz"]
[Site "Chess.com"]
[Date "2017.04.18"]
[Round "7"]
[White "grzechu96"]
[Black "Blitzstream"]
[Result "0-1"]
[WhiteElo "2381"]
[BlackElo "2475"]
[TimeControl "180+2"]
[EndTime "14:35:30 PDT"]
[Termination "Blitzstream won by checkmate"]

1. e4 {[%clk 0:03:02]} 1... e6 {[%clk 0:03:00.8]} 2. d4 {[%clk 0:03:02.9]} 2...
d5 {[%clk 0:03:01.9]} 3. Nc3 {[%clk 0:03:04.4]} 3... dxe4 {[%clk 0:02:54.1]} 4.
Nxe4 {[%clk 0:03:05.5]} 4... Bd7 {[%clk 0:02:55.4]} 5. Nf3 {[%clk 0:02:50.6]}
5... Bc6 {[%clk 0:02:55.6]} 6. Bd3 {[%clk 0:02:52.2]} 6... Nd7 {[%clk
0:02:51.1]} 7. Qe2 {[%clk 0:02:51.9]} 7... Ngf6 {[%clk 0:02:47.7]} 8. O-O {[%clk
0:02:46.5]} 8... Nxe4 {[%clk 0:02:38.8]} 9. Bxe4 {[%clk 0:02:47.6]} 9... Bxe4
{[%clk 0:02:40.7]} 10. Qxe4 {[%clk 0:02:49.3]} 10... c6 {[%clk 0:02:42.6]} 11.
Bg5 {[%clk 0:02:50.1]} 11... Be7 {[%clk 0:02:40.3]} 12. Bxe7 {[%clk 0:02:50.2]}
12... Qxe7 {[%clk 0:02:42.2]} 13. c3 {[%clk 0:02:20.4]} 13... O-O {[%clk
0:02:40.4]} 14. Rad1 {[%clk 0:02:20.6]} 14... Rad8 {[%clk 0:02:38.4]} 15. Qe3
{[%clk 0:02:18.3]} 15... Rfe8 {[%clk 0:02:32.5]} 16. Rfe1 {[%clk 0:02:18.9]}
16... Qd6 {[%clk 0:02:27]} 17. Qe2 {[%clk 0:01:57.1]} 17... b5 {[%clk
0:02:16.7]} 18. a4 {[%clk 0:01:49.8]} 18... a6 {[%clk 0:02:16.1]} 19. axb5
{[%clk 0:01:49.8]} 19... axb5 {[%clk 0:02:17.3]} 20. Ra1 {[%clk 0:01:51.5]}
20... Ra8 {[%clk 0:02:17.6]} 21. Ne5 {[%clk 0:01:44.1]} 21... Nxe5 {[%clk
0:02:16.7]} 22. Qxe5 {[%clk 0:01:43.9]} 22... Qxe5 {[%clk 0:02:17.5]} 23. dxe5
{[%clk 0:01:45.8]} 23... Kf8 {[%clk 0:02:18.3]} 24. Kf1 {[%clk 0:01:45.5]} 24...
Ke7 {[%clk 0:02:19.2]} 25. Red1 {[%clk 0:01:43.6]} 25... Red8 {[%clk 0:02:01.4]}
26. Ke2 {[%clk 0:01:44.6]} 26... f6 {[%clk 0:01:32.2]} 27. exf6+ {[%clk
0:01:31.5]} 27... gxf6 {[%clk 0:01:25.5]} 28. Rxd8 {[%clk 0:01:27.2]} 28... Rxa1
{[%clk 0:01:24.2]} 29. Rh8 {[%clk 0:01:28.2]} 29... Ra2 {[%clk 0:01:20.9]} 30.
Rxh7+ {[%clk 0:01:29.3]} 30... Kd6 {[%clk 0:01:22.1]} 31. h4 {[%clk 0:01:26.5]}
31... Rxb2+ {[%clk 0:01:22.4]} 32. Ke3 {[%clk 0:01:28]} 32... Rc2 {[%clk
0:01:16.6]} 33. h5 {[%clk 0:01:25.9]} 33... Rxc3+ {[%clk 0:01:17.6]} 34. Kf4
{[%clk 0:01:16.6]} 34... Rc4+ {[%clk 0:01:01.2]} 35. Kg3 {[%clk 0:01:11.4]}
35... Rc1 {[%clk 0:01:02.1]} 36. Kh2 {[%clk 0:01:12.2]} 36... b4 {[%clk
0:00:54.2]} 37. Rb7 {[%clk 0:01:06.9]} 37... c5 {[%clk 0:00:54.8]} 38. h6 {[%clk
0:01:08.1]} 38... Ra1 {[%clk 0:00:55.6]} 39. g4 {[%clk 0:00:58.7]} 39... Ra8
{[%clk 0:00:54.7]} 40. f4 {[%clk 0:00:59.6]} 40... Kc6 {[%clk 0:00:54.9]} 41.
Re7 {[%clk 0:00:56.2]} 41... Kd6 {[%clk 0:00:52.7]} 42. Rf7 {[%clk 0:00:37.8]}
42... b3 {[%clk 0:00:51.1]} 43. g5 {[%clk 0:00:36.6]} 43... Rb8 {[%clk
0:00:32.1]} 44. h7 {[%clk 0:00:23.5]} 44... b2 {[%clk 0:00:33.1]} 45. Rb7 {[%clk
0:00:24.7]} 45... Rxb7 {[%clk 0:00:31.7]} 46. h8=Q {[%clk 0:00:25]} 46... b1=Q
{[%clk 0:00:32.7]} 47. Qd8+ {[%clk 0:00:26.1]} 47... Kc6 {[%clk 0:00:32.2]} 48.
Qc8+ {[%clk 0:00:27.5]} 48... Kb6 {[%clk 0:00:31.5]} 49. Qxe6+ {[%clk
0:00:21.1]} 49... Ka7 {[%clk 0:00:30.5]} 50. Qxf6 {[%clk 0:00:22.3]} 50... Rb2+
{[%clk 0:00:26.8]} 51. Kg3 {[%clk 0:00:23.5]} 51... Qg1+ {[%clk 0:00:27.5]} 52.
Kf3 {[%clk 0:00:25]} 52... Qg2+ {[%clk 0:00:28.4]} 53. Ke3 {[%clk 0:00:25.4]}
53... Qe2# {[%clk 0:00:28.5]} 0-1

[Event "*** Qualifier 3: Titled Tuesday 3|2 Blitz"]
[Site "Chess.com"]
[Date "2017.04.18"]
[Round "7"]
[White "BogdanDeac"]
[Black "olomi007"]
[Result "1-0"]
[WhiteElo "2538"]
[BlackElo "2481"]
[TimeControl "180+2"]
[EndTime "14:36:02 PDT"]
[Termination "BogdanDeac won by checkmate"]

1. d4 {[%clk 0:03:02]} 1... Nf6 {[%clk 0:03:00.4]} 2. Bf4 {[%clk 0:03:02.1]}
2... d6 {[%clk 0:03:00.7]} 3. Nc3 {[%clk 0:03:02.2]} 3... g6 {[%clk 0:02:59.4]}
4. e4 {[%clk 0:03:02.4]} 4... Bg7 {[%clk 0:03:00.3]} 5. Qd2 {[%clk 0:03:03.5]}
5... Nc6 {[%clk 0:03:00.6]} 6. Nf3 {[%clk 0:03:03.3]} 6... O-O {[%clk
0:03:01.3]} 7. Be2 {[%clk 0:02:55.6]} 7... Bg4 {[%clk 0:03:00.5]} 8. d5 {[%clk
0:02:54.3]} 8... e5 {[%clk 0:03:01.4]} 9. Be3 {[%clk 0:02:42.1]} 9... Bxf3
{[%clk 0:03:01.3]} 10. gxf3 {[%clk 0:02:42.5]} 10... Nd4 {[%clk 0:02:54.6]} 11.
Bxd4 {[%clk 0:02:42.8]} 11... exd4 {[%clk 0:02:56.5]} 12. Qxd4 {[%clk 0:02:44]}
12... Nh5 {[%clk 0:02:58.1]} 13. Qb4 {[%clk 0:02:36.9]} 13... Nf4 {[%clk
0:02:55.9]} 14. Bd3 {[%clk 0:02:37.2]} 14... a5 {[%clk 0:02:47.9]} 15. Qc4
{[%clk 0:02:36.4]} 15... Qg5 {[%clk 0:02:37.1]} 16. Ne2 {[%clk 0:02:35.4]} 16...
Bxb2 {[%clk 0:02:23.9]} 17. Rb1 {[%clk 0:02:34]} 17... Be5 {[%clk 0:02:23.4]}
18. Nxf4 {[%clk 0:02:32]} 18... Qxf4 {[%clk 0:02:22.3]} 19. Ke2 {[%clk
0:02:30.6]} 19... a4 {[%clk 0:01:44.6]} 20. Rxb7 {[%clk 0:02:29.9]} 20... a3
{[%clk 0:01:38.2]} 21. Qxc7 {[%clk 0:02:29.9]} 21... Rac8 {[%clk 0:01:33.7]} 22.
Qd7 {[%clk 0:02:28.9]} 22... Bc3 {[%clk 0:01:32.1]} 23. Rd1 {[%clk 0:02:27.7]}
23... Qxh2 {[%clk 0:01:32.6]} 24. Rb3 {[%clk 0:02:10]} 24... Bd4 {[%clk
0:01:27.7]} 25. Rf1 {[%clk 0:02:08.3]} 25... Bc5 {[%clk 0:01:25]} 26. Qg4 {[%clk
0:02:03.7]} 26... Qe5 {[%clk 0:01:20.3]} 27. f4 {[%clk 0:01:52.6]} 27... Qd4
{[%clk 0:01:19.8]} 28. c3 {[%clk 0:01:51.9]} 28... Qa4 {[%clk 0:01:10.2]} 29. f5
{[%clk 0:01:47.4]} 29... Rb8 {[%clk 0:01:11.1]} 30. fxg6 {[%clk 0:01:36.3]}
30... hxg6 {[%clk 0:01:10.9]} 31. Rfb1 {[%clk 0:01:24]} 31... Rxb3 {[%clk
0:01:07.4]} 32. Rxb3 {[%clk 0:01:24.7]} 32... Ra8 {[%clk 0:01:02.6]} 33. Rb7
{[%clk 0:01:16.6]} 33... Qe8 {[%clk 0:00:47.5]} 34. f4 {[%clk 0:00:59.5]} 34...
Rb8 {[%clk 0:00:44.1]} 35. Rxb8 {[%clk 0:00:29.7]} 35... Qxb8 {[%clk 0:00:46]}
36. Bc4 {[%clk 0:00:30.8]} 36... Qb2+ {[%clk 0:00:45.4]} 37. Kd3 {[%clk
0:00:31.4]} 37... Qb1+ {[%clk 0:00:44.3]} 38. Kd2 {[%clk 0:00:29.3]} 38... Qb2+
{[%clk 0:00:42.9]} 39. Kd3 {[%clk 0:00:29]} 39... Qf2 {[%clk 0:00:39.7]} 40. f5
{[%clk 0:00:27]} 40... Kg7 {[%clk 0:00:28.8]} 41. fxg6 {[%clk 0:00:25.6]} 41...
fxg6 {[%clk 0:00:26.8]} 42. e5 {[%clk 0:00:19.2]} 42... Qe3+ {[%clk 0:00:22.2]}
43. Kc2 {[%clk 0:00:20.2]} 43... Qxe5 {[%clk 0:00:23.2]} 44. Bd3 {[%clk
0:00:21.4]} 44... Qf6 {[%clk 0:00:14.5]} 45. Kb3 {[%clk 0:00:20.6]} 45... g5
{[%clk 0:00:11.8]} 46. Qh5 {[%clk 0:00:20.1]} 46... Kf8 {[%clk 0:00:11.7]} 47.
Bg6 {[%clk 0:00:17.8]} 47... Qe5 {[%clk 0:00:11.8]} 48. Qf3+ {[%clk 0:00:17.6]}
48... Ke7 {[%clk 0:00:12.5]} 49. Qf7+ {[%clk 0:00:18.2]} 49... Kd8 {[%clk
0:00:13.8]} 50. Bf5 {[%clk 0:00:18.5]} 50... Qe7 {[%clk 0:00:14]} 51. Qg8+
{[%clk 0:00:19]} 51... Kc7 {[%clk 0:00:15.4]} 52. Qc8+ {[%clk 0:00:19.9]} 52...
Kb6 {[%clk 0:00:16.8]} 53. Bd7 {[%clk 0:00:20.3]} 53... Qe1 {[%clk 0:00:13]} 54.
Qc6+ {[%clk 0:00:18.8]} 54... Ka7 {[%clk 0:00:12.7]} 55. Qc7+ {[%clk 0:00:19.7]}
55... Ka6 {[%clk 0:00:13.9]} 56. Bc8+ {[%clk 0:00:19.9]} 56... Kb5 {[%clk
0:00:15.4]} 57. c4# {[%clk 0:00:20.8]} 1-0

[Event "*** Qualifier 3: Titled Tuesday 3|2 Blitz"]
[Site "Chess.com"]
[Date "2017.04.18"]
[Round "7"]
[White "GianmarcoVaR"]
[Black "DiogenesSinopeus"]
[Result "1-0"]
[WhiteElo "2465"]
[BlackElo "2277"]
[TimeControl "180+2"]
[EndTime "14:37:01 PDT"]
[Termination "GianmarcoVaR won on time"]

1. d4 {[%clk 0:03:02]} 1... Nf6 {[%clk 0:03:00.1]} 2. c4 {[%clk 0:03:03.7]} 2...
e6 {[%clk 0:03:01.4]} 3. g3 {[%clk 0:03:05.1]} 3... Bb4+ {[%clk 0:03:02.1]} 4.
Bd2 {[%clk 0:03:06.6]} 4... c5 {[%clk 0:03:03.1]} 5. Bxb4 {[%clk 0:03:07.2]}
5... cxb4 {[%clk 0:03:05]} 6. Bg2 {[%clk 0:03:09]} 6... O-O {[%clk 0:03:05.8]}
7. e4 {[%clk 0:03:10.2]} 7... d6 {[%clk 0:03:07.4]} 8. Ne2 {[%clk 0:03:10.7]}
8... Nc6 {[%clk 0:03:08.6]} 9. O-O {[%clk 0:03:01.6]} 9... Qb6 {[%clk
0:02:57.9]} 10. a3 {[%clk 0:03:01.5]} 10... e5 {[%clk 0:02:54.1]} 11. d5 {[%clk
0:03:01.3]} 11... Nb8 {[%clk 0:02:50.4]} 12. axb4 {[%clk 0:02:56.5]} 12... Qxb4
{[%clk 0:02:51.6]} 13. Qc2 {[%clk 0:02:50.4]} 13... Na6 {[%clk 0:02:43.7]} 14.
Na3 {[%clk 0:02:45.2]} 14... Bg4 {[%clk 0:02:34.7]} 15. Nc1 {[%clk 0:02:44]}
15... Nd7 {[%clk 0:02:21]} 16. Nb5 {[%clk 0:02:39.2]} 16... Rfc8 {[%clk
0:02:03.6]} 17. Na3 {[%clk 0:02:27.7]} 17... Qb6 {[%clk 0:01:55]} 18. h3 {[%clk
0:01:26]} 18... Nb4 {[%clk 0:01:49.4]} 19. Qd2 {[%clk 0:01:25]} 19... Bh5 {[%clk
0:01:44.5]} 20. b3 {[%clk 0:01:24.2]} 20... Nc5 {[%clk 0:01:39.4]} 21. Nb5
{[%clk 0:01:17.2]} 21... a5 {[%clk 0:00:49.5]} 22. Ra3 {[%clk 0:01:06.9]} 22...
Rf8 {[%clk 0:00:36.9]} 23. Na2 {[%clk 0:00:56.5]} 23... Ncd3 {[%clk 0:00:09.1]}
24. Nxb4 {[%clk 0:00:53.1]} 24... Nxb4 {[%clk 0:00:10.3]} 25. Rfa1 {[%clk
0:00:48.7]} 25... f5 {[%clk 0:00:11.6]} 26. exf5 {[%clk 0:00:49.5]} 26... Be8
{[%clk 0:00:03.3]} 27. Nc3 {[%clk 0:00:29.8]} 27... Rxf5 {[%clk 0:00:04.1]} 28.
Na2 {[%clk 0:00:18.1]} 28... Nxa2 {[%clk 0:00:03.5]} 29. R1xa2 {[%clk
0:00:19.1]} 29... Bg6 {[%clk 0:00:03.6]} 30. Be4 {[%clk 0:00:15.2]} 30... Rf6
{[%clk 0:00:02.9]} 31. Bxg6 {[%clk 0:00:16.1]} 31... hxg6 {[%clk 0:00:04.6]} 32.
Kg2 {[%clk 0:00:13.3]} 32... Raf8 {[%clk 0:00:05.4]} 33. Qe1 {[%clk 0:00:08.3]}
33... Qd4 {[%clk 0:00:02.6]} 34. Re2 {[%clk 0:00:07.2]} 34... b6 {[%clk
0:00:02.1]} 35. Raa2 {[%clk 0:00:06.7]} 35... Qc5 {[%clk 0:00:02]} 36. Re3
{[%clk 0:00:07]} 36... Qd4 {[%clk 0:00:03.3]} 37. Rd2 {[%clk 0:00:07.6]} 37...
Qc5 {[%clk 0:00:04.5]} 38. Qb1 {[%clk 0:00:08.2]} 38... Qb4 {[%clk 0:00:05.1]}
39. Qd3 {[%clk 0:00:08.5]} 39... Qc5 {[%clk 0:00:05.5]} 40. Rde2 {[%clk
0:00:09.6]} 40... Qb4 {[%clk 0:00:05.5]} 41. h4 {[%clk 0:00:10.7]} 41... Qc5
{[%clk 0:00:04.7]} 42. Qe4 {[%clk 0:00:11.1]} 42... Qc7 {[%clk 0:00:05.3]} 43.
Qg4 {[%clk 0:00:11.7]} 43... Qf7 {[%clk 0:00:06.3]} 44. f3 {[%clk 0:00:09.2]}
44... Qe7 {[%clk 0:00:03.6]} 45. f4 {[%clk 0:00:09.9]} 45... Qf7 {[%clk
0:00:03.4]} 46. fxe5 {[%clk 0:00:06.4]} 46... Rf2+ {[%clk 0:00:05.3]} 47. Kh3
{[%clk 0:00:07.4]} 47... Rf1 {[%clk 0:00:05.3]} 48. Qe6 {[%clk 0:00:05.6]} 48...
Qxe6+ {[%clk 0:00:05.4]} 49. dxe6 {[%clk 0:00:06.6]} 49... dxe5 {[%clk
0:00:04.7]} 50. Rxe5 {[%clk 0:00:07.8]} 50... Re8 {[%clk 0:00:04.8]} 51. e7
{[%clk 0:00:08.1]} 51... Rf7 {[%clk 0:00:05.4]} 52. Kg4 {[%clk 0:00:08.4]} 52...
Rf6 {[%clk 0:00:03.5]} 53. Re6 {[%clk 0:00:08.5]} 53... Kf7 {[%clk 0:00:04]} 54.
Rxf6+ {[%clk 0:00:06.9]} 54... gxf6 {[%clk 0:00:05.1]} 55. h5 {[%clk 0:00:07.4]}
55... gxh5+ {[%clk 0:00:03.8]} 56. Kxh5 {[%clk 0:00:06.8]} 56... Rxe7 {[%clk
0:00:04.1]} 57. Rxe7+ {[%clk 0:00:06.3]} 57... Kxe7 {[%clk 0:00:06]} 58. Kg6
{[%clk 0:00:07.5]} 58... Ke6 {[%clk 0:00:07.6]} 59. g4 {[%clk 0:00:08.9]} 59...
Ke7 {[%clk 0:00:03.5]} 60. Kg7 {[%clk 0:00:08.2]} 60... Ke6 {[%clk 0:00:04]} 61.
Kg6 {[%clk 0:00:09.6]} 61... Ke7 {[%clk 0:00:04.9]} 62. Kg7 {[%clk 0:00:07.4]}
62... Ke6 {[%clk 0:00:06.3]} 63. Kf8 {[%clk 0:00:07.2]} 63... f5 {[%clk
0:00:04.6]} 64. g5 {[%clk 0:00:07.6]} 64... f4 {[%clk 0:00:04.8]} 65. g6 {[%clk
0:00:09]} 1-0

[Event "*** Qualifier 3: Titled Tuesday 3|2 Blitz"]
[Site "Chess.com"]
[Date "2017.04.18"]
[Round "7"]
[White "andreimacovei2000"]
[Black "MartinMatthiesen"]
[Result "1-0"]
[WhiteElo "2385"]
[BlackElo "2226"]
[TimeControl "180+2"]
[EndTime "14:37:06 PDT"]
[Termination "andreimacovei2000 won by resignation"]

1. e4 {[%clk 0:02:51.1]} 1... e5 {[%clk 0:02:57.4]} 2. Nf3 {[%clk 0:02:51.9]}
2... Nc6 {[%clk 0:02:58]} 3. Bb5 {[%clk 0:02:50.2]} 3... a6 {[%clk 0:02:58.2]}
4. Ba4 {[%clk 0:02:51.1]} 4... Nf6 {[%clk 0:02:58.7]} 5. O-O {[%clk 0:02:50.1]}
5... Be7 {[%clk 0:02:59.2]} 6. Re1 {[%clk 0:02:50.9]} 6... b5 {[%clk 0:03:00]}
7. Bb3 {[%clk 0:02:52.4]} 7... O-O {[%clk 0:03:00.9]} 8. h3 {[%clk 0:02:51.1]}
8... Bb7 {[%clk 0:03:00.3]} 9. a4 {[%clk 0:02:50.2]} 9... d5 {[%clk 0:02:53.6]}
10. axb5 {[%clk 0:02:44.8]} 10... axb5 {[%clk 0:02:54]} 11. Rxa8 {[%clk
0:02:45.7]} 11... Bxa8 {[%clk 0:02:54.5]} 12. exd5 {[%clk 0:02:43.1]} 12... Nxd5
{[%clk 0:02:54.9]} 13. Nxe5 {[%clk 0:02:42.6]} 13... Nd4 {[%clk 0:02:43.1]} 14.
d3 {[%clk 0:02:16.9]} 14... Nxb3 {[%clk 0:02:41.4]} 15. cxb3 {[%clk 0:02:18.8]}
15... Re8 {[%clk 0:02:18.8]} 16. Nc3 {[%clk 0:02:18.1]} 16... Bb4 {[%clk
0:01:20.7]} 17. Bd2 {[%clk 0:02:12.5]} 17... Bd6 {[%clk 0:01:11]} 18. d4 {[%clk
0:02:11.1]} 18... Bxe5 {[%clk 0:00:42.9]} 19. dxe5 {[%clk 0:02:09.1]} 19... Nb4
{[%clk 0:00:42.8]} 20. Re3 {[%clk 0:01:37]} 20... Nd3 {[%clk 0:00:35.7]} 21. Qe2
{[%clk 0:01:29.4]} 21... Nf4 {[%clk 0:00:33.7]} 22. Qg4 {[%clk 0:01:27.2]} 22...
Qxd2 {[%clk 0:00:23.2]} 23. Qxf4 {[%clk 0:01:27.6]} 23... Qxb2 {[%clk
0:00:23.9]} 24. Nxb5 {[%clk 0:01:23]} 24... Qc1+ {[%clk 0:00:20.3]} 25. Kh2
{[%clk 0:01:23.1]} 25... Qc6 {[%clk 0:00:21.9]} 26. Rf3 {[%clk 0:01:04]} 26...
Qg6 {[%clk 0:00:21.9]} 27. Rg3 {[%clk 0:00:57.8]} 27... Qe4 {[%clk 0:00:20.7]}
28. Qxe4 {[%clk 0:00:55.9]} 28... Bxe4 {[%clk 0:00:21.6]} 29. Re3 {[%clk
0:00:55.3]} 29... Bc2 {[%clk 0:00:20.2]} 30. Nxc7 {[%clk 0:00:55.4]} 30... Rb8
{[%clk 0:00:21.2]} 31. Na6 {[%clk 0:00:52.7]} 31... Rb5 {[%clk 0:00:20.8]} 32.
f4 {[%clk 0:00:49.2]} 32... Bxb3 {[%clk 0:00:20.3]} 33. Rc3 {[%clk 0:00:43.7]}
33... h5 {[%clk 0:00:20.5]} 34. Kg3 {[%clk 0:00:43.8]} 34... Be6 {[%clk
0:00:20.2]} 35. Kh4 {[%clk 0:00:44.6]} 35... g6 {[%clk 0:00:21.3]} 36. g4 {[%clk
0:00:42.9]} 36... hxg4 {[%clk 0:00:21.7]} 37. hxg4 {[%clk 0:00:44.8]} 37... Kg7
{[%clk 0:00:23.3]} 38. Kg5 {[%clk 0:00:46.2]} 38... f6+ {[%clk 0:00:23.7]} 39.
Kh4 {[%clk 0:00:46.4]} 39... fxe5 {[%clk 0:00:25]} 40. Nc7 {[%clk 0:00:40.6]}
40... Rb6 {[%clk 0:00:25.2]} 41. fxe5 {[%clk 0:00:39.7]} 41... Bf7 {[%clk
0:00:26.2]} 42. Kg5 {[%clk 0:00:39.1]} 42... Kf8 {[%clk 0:00:25.2]} 43. Rc5
{[%clk 0:00:36.8]} 43... Ke7 {[%clk 0:00:25.8]} 44. Nb5 {[%clk 0:00:35.4]} 44...
Kf8 {[%clk 0:00:25.5]} 45. Nd4 {[%clk 0:00:35]} 45... Kg7 {[%clk 0:00:25.6]} 46.
Rc7 {[%clk 0:00:32.7]} 46... Kg8 {[%clk 0:00:26.5]} 47. Nc6 {[%clk 0:00:28.8]}
47... Kf8 {[%clk 0:00:25.2]} 48. Rc8+ {[%clk 0:00:25.2]} 48... Kg7 {[%clk
0:00:25.6]} 49. Rc7 {[%clk 0:00:25.9]} 49... Kf8 {[%clk 0:00:26.6]} 50. Nd8
{[%clk 0:00:14.7]} 50... Be8 {[%clk 0:00:26.7]} 51. e6 {[%clk 0:00:13.6]} 51...
Rd6 {[%clk 0:00:26.2]} 52. Kf6 {[%clk 0:00:09.5]} 52... Rd4 {[%clk 0:00:21.5]}
53. Nb7 {[%clk 0:00:05.5]} 53... Rxg4 {[%clk 0:00:20]} 54. Rh7 {[%clk
0:00:05.8]} 54... Rf4+ {[%clk 0:00:19]} 55. Ke5 {[%clk 0:00:07.2]} 55... Rf5+
{[%clk 0:00:20.1]} 56. Kd6 {[%clk 0:00:08.7]} 56... Kg8 {[%clk 0:00:20.9]} 57.
Re7 {[%clk 0:00:09.7]} 57... Rf8 {[%clk 0:00:21.5]} 58. Rc7 {[%clk 0:00:09.4]}
58... g5 {[%clk 0:00:22.2]} 59. Rc5 {[%clk 0:00:10.7]} 59... g4 {[%clk
0:00:19.1]} 60. Rg5+ {[%clk 0:00:11.8]} 60... Kh7 {[%clk 0:00:20.2]} 61. Rxg4
{[%clk 0:00:13.2]} 61... Rg8 {[%clk 0:00:21]} 62. Rh4+ {[%clk 0:00:14]} 62...
Kg6 {[%clk 0:00:22.2]} 63. Ke7 {[%clk 0:00:15.2]} 63... Kf5 {[%clk 0:00:21]} 64.
Nd6+ {[%clk 0:00:15.3]} 64... Kg5 {[%clk 0:00:20.9]} 65. Rh1 {[%clk 0:00:15.8]}
65... Bg6 {[%clk 0:00:20.9]} 66. Rg1+ {[%clk 0:00:16.8]} 66... Kh5 {[%clk
0:00:21.7]} 67. Kf6 {[%clk 0:00:14.9]} 67... Rf8+ {[%clk 0:00:18.1]} 68. Nf7
{[%clk 0:00:16.2]} 68... Re8 {[%clk 0:00:14.3]} 69. Rg5+ {[%clk 0:00:16.7]}
69... Kh4 {[%clk 0:00:14.9]} 70. Rxg6 {[%clk 0:00:17.7]} 1-0